fUST/lending_fUST_20240516
["ID","MTS","AMOUNT","RATE_DAILY","PERIOD"]
[327160862,1715866240914,-500.0,0.00016438,2]
[327160863,1715866240924,-500.0,0.00016438,2]
[327160864,1715866240933,-1142.41,0.00016438,2]
[327160865,1715866240943,-500.0,0.00016438,2]
[327160866,1715866240953,-643.23,0.00016438,2]
[327160867,1715866240963,-649.24,0.00016438,2]
[327160868,1715866240972,-500.0,0.00016438,2]
[327160869,1715866240981,-1285.25,0.00016438,2]
[327160870,1715866240991,-500.0,0.00016438,2]
[327160871,1715866241001,-500.0,0.00016438,2]
[327160872,1715866241011,-704.96,0.00016438,2]
[327160873,1715866241021,-1742.48,0.00016438,2]
[327160874,1715866241030,-607.51,0.00016438,2]
[327160875,1715866241039,-500.0,0.00016438,2]
[327160876,1715866241049,-500.0,0.00016438,2]
[327160877,1715866241058,-500.0,0.00016438,2]
[327160878,1715866241068,-686.86,0.00016438,2]
[327160879,1715866241077,-500.0,0.00016438,2]
[327160880,1715866241086,-500.0,0.00016438,2]
[327160881,1715866241096,-500.0,0.00016438,2]
[327160882,1715866241106,-2412.91,0.00016438,2]
[327160883,1715866241116,-500.0,0.00016438,2]
[327160884,1715866241125,-500.0,0.00016438,2]
[327160885,1715866241134,-500.0,0.00016438,2]
[327160886,1715866241144,-500.0,0.00016438,2]
[327160887,1715866241153,-563.43,0.00016438,2]
[327160888,1715866241162,-500.0,0.00016438,2]
[327160889,1715866241173,-500.0,0.00016438,2]
[327160890,1715866241187,-178.90698012,0.00016438,2]
[327160891,1715866241197,-151.0,0.00016438,2]
[327160892,1715866241206,-151.0,0.00016438,2]
[327160893,1715866241216,-1000.0,0.00016438,2]
[327160894,1715866241225,-988.12,0.00016438,2]
[327160895,1715866241234,-312.19212164,0.00016438,2]
[327160896,1715866241243,-500.0,0.00016438,2]
[327160897,1715866241253,-698.91,0.00016438,2]
[327160898,1715866241266,-500.0,0.00016438,2]
[327160899,1715866241275,-500.0,0.00016438,2]
[327160900,1715866241284,-500.0,0.00016438,2]
[327160901,1715866241294,-500.0,0.00016438,2]
[327160902,1715866241303,-500.0,0.00016438,2]
[327160904,1715866241312,-500.0,0.00016438,2]
[327160907,1715866241322,-500.0,0.00016438,2]
[327160908,1715866241331,-500.0,0.00016438,2]
[327160911,1715866241341,-909.38,0.00016438,2]
[327160913,1715866241351,-736.8,0.00016438,2]
[327160915,1715866241361,-500.0,0.00016438,2]
[327160916,1715866241370,-500.0,0.00016438,2]
[327160919,1715866241380,-4512.65,0.00016438,2]
[327160920,1715866241390,-500.0,0.00016438,2]
[327160922,1715866241399,-500.0,0.00016438,2]
[327160924,1715866241409,-500.0,0.00016438,2]
[327160926,1715866241418,-1476.59,0.00016438,2]
[327160928,1715866241428,-500.0,0.00016438,2]
[327160930,1715866241438,-500.0,0.00016438,2]
[327160933,1715866241448,-3148.78,0.00016438,2]
[327160934,1715866241457,-2707.64,0.00016438,2]
[327160937,1715866241467,-1542.39,0.00016438,2]
[327160939,1715866241476,-500.0,0.00016438,2]
[327160940,1715866241486,-151.0,0.00016438,2]
[327160943,1715866241495,-151.0,0.00016438,2]
[327160945,1715866241504,-151.0,0.00016438,2]
[327160947,1715866241516,-328.61724792,0.00016438,2]
[327160949,1715866241525,-500.0,0.00016438,2]
[327160951,1715866241535,-500.0,0.00016438,2]
[327160953,1715866241544,-851.58,0.00016438,2]
[327160955,1715866241554,-852.61,0.00016438,2]
[327160957,1715866241563,-697.12,0.00016438,2]
[327160959,1715866241573,-277.23215716,0.00016438,2]
[327160961,1715866241582,-500.0,0.00016438,2]
[327160962,1715866241592,-687.67,0.00016438,2]
[327160963,1715866241602,-500.0,0.00016438,2]
[327160964,1715866241611,-1340.32,0.00016438,2]
[327160965,1715866241620,-500.0,0.00016438,2]
[327160966,1715866241629,-596.86,0.00016438,2]
[327160968,1715866241639,-151.0,0.00016438,2]
[327160970,1715866241648,-161.464354,0.00016438,2]
[327160972,1715866241658,-1000.0,0.00016438,2]
[327160974,1715866241668,-1883.28,0.00016438,2]
[327160976,1715866241677,-4572.37,0.00016438,2]
[327160978,1715866241686,-639.31,0.00016438,2]
[327160980,1715866241695,-427.58473108,0.00016438,2]
[327160982,1715866241705,-500.0,0.00016438,2]
[327160984,1715866241714,-500.0,0.00016438,2]
[327160986,1715866241723,-500.0,0.00016438,2]
[327160988,1715866241733,-500.0,0.00016438,2]
[327160990,1715866241742,-500.0,0.00016438,2]
[327160992,1715866241752,-500.0,0.00016438,2]
[327160994,1715866241763,-151.0,0.00016438,2]
[327160996,1715866241772,-500.0,0.00016438,2]
[327160998,1715866241782,-151.0,0.00016438,2]
[327161000,1715866241792,-151.0,0.00016438,2]
[327161002,1715866241801,-500.0,0.00016438,2]
[327161004,1715866241811,-500.0,0.00016438,2]
[327161006,1715866241820,-151.0,0.00016438,2]
[327161008,1715866241830,-5280.09,0.00016438,2]
[327161010,1715866241840,-151.0,0.00016438,2]
[327161012,1715866241849,-151.0,0.00016438,2]
[327161014,1715866241859,-173.51772347,0.00016438,2]
[327161019,1715866241895,-326.48227653,0.00016438,2]
[327161021,1715866241904,-500.0,0.00016438,2]
[327161023,1715866241914,-151.0,0.00016438,2]
[327161025,1715866241923,-1387.26,0.00016438,2]
[327161027,1715866241933,-151.0,0.00016438,2]
[327161029,1715866241943,-151.0,0.00016438,2]
[327161031,1715866241952,-1292.04,0.00016438,2]
[327161033,1715866241961,-2190.67,0.00016438,2]
[327161035,1715866241970,-500.0,0.00016438,2]
[327161037,1715866241979,-500.0,0.00016438,2]
[327161039,1715866241989,-500.0,0.00016438,2]
[327161041,1715866241998,-706.99,0.00016438,2]
[327161043,1715866242007,-392.688897,0.00016438,2]
[327161045,1715866242018,-392.688897,0.00016438,2]
[327161047,1715866242027,-392.688897,0.00016438,2]
[327161049,1715866242036,-500.0,0.00016438,2]
[327161051,1715866242045,-151.0,0.00016438,2]
[327161053,1715866242055,-151.0,0.00016438,2]
[327161055,1715866242064,-246.775334,0.00016438,2]
[327161057,1715866242073,-500.0,0.00016438,2]
[327161072,1715866242190,-500.0,0.00016438,2]
[327161074,1715866242219,-756.73,0.00016438,2]
[327161076,1715866242228,-4.95682858,0.00016438,2]
[327161100,1715866242441,-387.73206842,0.00016438,2]
[327161102,1715866242450,-392.688897,0.00016438,2]
[327161104,1715866242460,-392.688897,0.00016438,2]
[327161106,1715866242469,-456.06168788,0.00016438,2]
[327161108,1715866242478,-500.0,0.00016438,2]
[327161110,1715866242488,-500.0,0.00016438,2]
[327161112,1715866242498,-717.15,0.00016438,2]
[327161114,1715866242507,-603.61,0.00016438,2]
[327161116,1715866242519,-500.0,0.00016438,2]
[327161118,1715866242528,-500.0,0.00016438,2]
[327161120,1715866242537,-564.36,0.00016438,2]
[327161122,1715866242546,-684.55,0.00016438,2]
[327161124,1715866242555,-500.0,0.00016438,2]
[327161126,1715866242564,-500.0,0.00016438,2]
[327161128,1715866242573,-500.0,0.00016438,2]
[327161130,1715866242583,-500.0,0.00016438,2]
[327161132,1715866242592,-500.0,0.00016438,2]
[327161134,1715866242602,-500.0,0.00016438,2]
[327161136,1715866242612,-552.63,0.00016438,2]
[327161138,1715866242622,-901.32,0.00016438,2]
[327161140,1715866242631,-500.0,0.00016438,2]
[327161142,1715866242641,-367.347824,0.00016438,2]
[327161144,1715866242650,-695.06,0.00016438,2]
[327161146,1715866242659,-367.347824,0.00016438,2]
[327161148,1715866242669,-367.347824,0.00016438,2]
[327161150,1715866242678,-828.94,0.00016438,2]
[327161152,1715866242687,-988.700408,0.00016438,2]
[327161154,1715866242697,-988.700408,0.00016438,2]
[327161156,1715866242706,-988.700408,0.00016438,2]
[327161158,1715866242715,-367.347824,0.00016438,2]
[327161160,1715866242726,-367.347824,0.00016438,2]
[327161162,1715866242735,-367.347824,0.00016438,2]
[327161164,1715866242744,-317.8202817,0.00016438,2]
[327161447,1715866247833,-670.8801263,0.00016438,2]
[327161448,1715866247843,-988.700408,0.00016438,2]
[327161449,1715866247852,-988.700408,0.00016438,2]
[327161450,1715866247862,-151.0,0.00016438,2]
[327161451,1715866247872,-151.0,0.00016438,2]
[327161452,1715866247881,-151.0,0.00016438,2]
[327161453,1715866247891,-500.0,0.00016438,2]
[327161454,1715866247900,-500.0,0.00016438,2]
[327161455,1715866247909,-151.0,0.00016438,2]
[327161456,1715866247920,-151.0,0.00016438,2]
[327161457,1715866247930,-180.964424,0.00016438,2]
[327161458,1715866247939,-2643.33,0.00016438,2]
[327161459,1715866247949,-1155.33,0.00016438,2]
[327161460,1715866247958,-500.0,0.00016438,2]
[327161461,1715866247968,-752.4,0.00016438,2]
[327161462,1715866247980,-2735.04,0.00016438,2]
[327161463,1715866247990,-500.0,0.00016438,2]
[327161464,1715866248000,-500.0,0.00016438,2]
[327161465,1715866248009,-500.0,0.00016438,2]
[327161466,1715866248023,-500.0,0.00016438,2]
[327161467,1715866248032,-500.0,0.00016438,2]
[327161468,1715866248042,-500.0,0.00016438,2]
[327161469,1715866248052,-400.916184,0.00016438,2]
[327161470,1715866248061,-400.916184,0.00016438,2]
[327161471,1715866248070,-400.916184,0.00016438,2]
[327161472,1715866248080,-400.916184,0.00016438,2]
[327161473,1715866248090,-400.916184,0.00016438,2]
[327161474,1715866248099,-500.0,0.00016438,2]
[327161475,1715866248108,-225.73036029,0.00016438,2]
[327161476,1715866248118,-400.916184,0.00016438,2]
[327161477,1715866248127,-500.0,0.00016438,2]
[327161478,1715866248137,-1000.0,0.00016438,2]
[327161479,1715866248148,-841.86,0.00016438,2]
[327161480,1715866248158,-500.0,0.00016438,2]
[327161481,1715866248167,-673.05,0.00016438,2]
[327161482,1715866248179,-940.25,0.00016438,2]
[327161483,1715866248191,-500.0,0.00016438,2]
[327161484,1715866248200,-500.0,0.00016438,2]
[327161485,1715866248210,-500.0,0.00016438,2]
[327161486,1715866248220,-3558.15,0.00016438,2]
[327161487,1715866248230,-865.58,0.00016438,2]
[327161488,1715866248240,-500.0,0.00016438,2]
[327161489,1715866248250,-500.0,0.00016438,2]
[327161490,1715866248261,-1137.47,0.00016438,2]
[327161491,1715866248275,-512.03,0.00016438,2]
[327161492,1715866248283,-500.0,0.00016438,2]
[327161493,1715866248292,-500.0,0.00016438,2]
[327161494,1715866248302,-500.0,0.00016438,2]
[327161495,1715866248310,-733.16,0.00016438,2]
[327161496,1715866248319,-500.0,0.00016438,2]
[327161497,1715866248327,-2999.95,0.00016438,2]
[327161498,1715866248336,-500.0,0.00016438,2]
[327161499,1715866248346,-500.0,0.00016438,2]
[327161500,1715866248356,-1181.57,0.00016438,2]
[327161501,1715866248366,-2232.85,0.00016438,2]
[327161502,1715866248375,-151.0,0.00016438,2]
[327161503,1715866248384,-151.0,0.00016438,2]
[327161504,1715866248393,-500.0,0.00016438,2]
[327161505,1715866248403,-151.0,0.00016438,2]
[327161506,1715866248413,-500.0,0.00016438,2]
[327161507,1715866248423,-500.0,0.00016438,2]
[327161508,1715866248432,-514.32808835,0.00016438,2]
[327161509,1715866248441,-944.868241,0.00016438,2]
[327161510,1715866248450,-944.868241,0.00016438,2]
[327161511,1715866248459,-944.868241,0.00016438,2]
[327161512,1715866248468,-692.25,0.00016438,2]
[327161513,1715866248478,-500.0,0.00016438,2]
[327161514,1715866248487,-723.97,0.00016438,2]
[327161515,1715866248497,-2956.11,0.00016438,2]
[327161516,1715866248506,-3446.01,0.00016438,2]
[327161517,1715866248519,-645.33,0.00016438,2]
[327161518,1715866248528,-944.868241,0.00016438,2]
[327161519,1715866248538,-944.868241,0.00016438,2]
[327161520,1715866248547,-944.868241,0.00016438,2]
[327161521,1715866248557,-500.0,0.00016438,2]
[327161522,1715866248566,-536.73449448,0.00016438,2]
[327161523,1715866248576,-500.0,0.00016438,2]
[327161524,1715866248586,-560.52,0.00016438,2]
[327161525,1715866248596,-1255.16,0.00016438,2]
[327161526,1715866248605,-1313.78,0.00016438,2]
[327161527,1715866248614,-930.93,0.00016438,2]
[327161528,1715866248624,-500.0,0.00016438,2]
[327161529,1715866248634,-1672.83,0.00016438,2]
[327161530,1715866248644,-613.73,0.00016438,2]
[327161531,1715866248653,-161.790551,0.00016438,2]
[327161532,1715866248663,-161.790551,0.00016438,2]
[327161533,1715866248672,-500.0,0.00016438,2]
[327161534,1715866248682,-1281.86,0.00016438,2]
[327161535,1715866248692,-161.790551,0.00016438,2]
[327161536,1715866248702,-161.790551,0.00016438,2]
[327161537,1715866248712,-161.790551,0.00016438,2]
[327161538,1715866248722,-161.790551,0.00016438,2]
[327161539,1715866248731,-4449.87,0.00016438,2]
[327161540,1715866248741,-500.0,0.00016438,2]
[327161541,1715866248751,-11169.49,0.00016438,2]
[327161542,1715866248761,-500.0,0.00016438,2]
[327161543,1715866248773,-500.0,0.00016438,2]
[327161544,1715866248783,-500.0,0.00016438,2]
[327161545,1715866248793,-210.0,0.00016438,2]
[327161546,1715866248802,-210.0,0.00016438,2]
[327161547,1715866248812,-500.0,0.00016438,2]
[327161548,1715866248822,-210.0,0.00016438,2]
[327161549,1715866248831,-500.0,0.00016438,2]
[327161550,1715866248841,-210.0,0.00016438,2]
[327161551,1715866248851,-500.0,0.00016438,2]
[327161552,1715866248862,-15689.33,0.00016438,2]
[327161553,1715866248872,-210.0,0.00016438,2]
[327161554,1715866248882,-210.0,0.00016438,2]
[327161555,1715866248892,-77261.2,0.00016438,2]
[327161556,1715866248902,-500.0,0.00016438,2]
[327161557,1715866248911,-500.0,0.00016438,2]
[327161558,1715866248921,-151.0,0.00016438,2]
[327161559,1715866248931,-500.0,0.00016438,2]
[327161560,1715866248940,-151.0,0.00016438,2]
[327161561,1715866249076,-151.0,0.00016438,2]
[327161562,1715866249089,-554.87,0.00016438,2]
[327161563,1715866249099,-1133.66,0.00016438,2]
[327161564,1715866249109,-5663.84,0.00016438,2]
[327161565,1715866249118,-500.0,0.00016438,2]
[327161566,1715866249128,-2047.29,0.00016438,2]
[327161567,1715866249138,-500.0,0.00016438,2]
[327161568,1715866249148,-249.567945,0.00016438,2]
[327161569,1715866249159,-500.0,0.00016438,2]
[327161570,1715866249168,-500.0,0.00016438,2]
[327161571,1715866249182,-500.0,0.00016438,2]
[327161572,1715866249192,-500.0,0.00016438,2]
[327161573,1715866249202,-500.0,0.00016438,2]
[327161574,1715866249212,-500.0,0.00016438,4]
[327161575,1715866249223,-500.0,0.00016438,2]
[327161576,1715866249234,-500.0,0.00016438,2]
[327161577,1715866249244,-500.0,0.00016438,2]
[327161578,1715866249254,-500.0,0.00016438,2]
[327161579,1715866249269,-500.0,0.00016438,2]
[327161580,1715866249279,-500.0,0.00016438,2]
[327161581,1715866249289,-500.0,0.00016438,2]
[327161582,1715866249298,-500.0,0.00016438,2]
[327161583,1715866249309,-500.0,0.00016438,2]
[327161584,1715866249319,-500.0,0.00016438,2]
[327161585,1715866249330,-7214.56,0.00016438,2]
[327161586,1715866249340,-500.0,0.00016438,2]
[327161587,1715866249349,-500.0,0.00016438,2]
[327161588,1715866249359,-500.0,0.00016438,2]
[327161589,1715866249369,-500.0,0.00016438,2]
[327161590,1715866249378,-500.0,0.00016438,2]
[327161591,1715866249388,-1589.44,0.00016438,2]
[327161592,1715866249398,-500.0,0.00016438,2]
[327161593,1715866249407,-672.1,0.00016438,2]
[327161594,1715866249417,-151.0,0.00016438,2]
[327161595,1715866249426,-151.0,0.00016438,2]
[327161596,1715866249436,-500.0,0.00016438,2]
[327161597,1715866249447,-500.0,0.00016438,2]
[327161598,1715866249456,-500.0,0.00016438,2]
[327161599,1715866249466,-680.9,0.00016438,2]
[327161600,1715866249476,-238.02687362,0.00016438,2]
[327161601,1715866249485,-500.0,0.00016438,2]
[327161602,1715866249495,-621.23,0.00016438,2]
[327161603,1715866249505,-151.0,0.00016438,2]
[327161604,1715866249515,-158.339831,0.00016438,2]
[327161605,1715866249525,-9368.31,0.00016438,2]
[327161606,1715866249534,-906.94,0.00016438,2]
[327161607,1715866249544,-500.0,0.00016438,2]
[327161608,1715866249554,-219.971407,0.00016438,2]
[327161609,1715866249563,-219.971407,0.00016438,2]
[327161610,1715866249573,-219.971407,0.00016438,2]
[327161611,1715866249582,-500.0,0.00016438,2]
[327161612,1715866249592,-219.971407,0.00016438,2]
[327161613,1715866249602,-500.0,0.00016438,2]
[327161614,1715866249612,-3141.42,0.00016438,2]
[327161615,1715866249622,-153.1223629,0.00016438,2]
[327161616,1715866249632,-500.0,0.00016438,2]
[327161617,1715866249641,-500.0,0.00016438,2]
[327161618,1715866249651,-1898.12,0.00016438,2]
[327161619,1715866249660,-500.0,0.00016438,2]
[327161620,1715866249671,-570.7,0.00016438,2]
[327161621,1715866249680,-500.0,0.00016438,2]
[327161622,1715866249690,-1058.66,0.00016438,2]
[327161623,1715866249699,-500.0,0.00016438,2]
[327161624,1715866249709,-500.0,0.00016438,2]
[327161625,1715866249718,-500.0,0.00016438,2]
[327161626,1715866249728,-631.37111825,0.00016438,2]
[327161627,1715866249738,-635.69,0.00016438,2]
[327161628,1715866249748,-2395.98,0.00016438,2]
[327161629,1715866249758,-572.07,0.00016438,2]
[327161630,1715866249769,-545.34224176,0.00016438,2]
[327161631,1715866249779,-907.12,0.00016438,2]
[327161632,1715866249789,-151.0,0.00016438,2]
[327161633,1715866249799,-151.0,0.00016438,2]
[327161634,1715866249808,-500.0,0.00016438,2]
[327161635,1715866249818,-500.0,0.00016438,2]
[327161636,1715866249828,-2008.85,0.00016438,2]
[327161637,1715866249838,-1366.36,0.00016438,2]
[327161638,1715866249847,-500.0,0.00016438,2]
[327161639,1715866249857,-992.75,0.00016438,2]
[327161640,1715866249866,-500.0,0.00016438,2]
[327161641,1715866249876,-500.0,0.00016438,2]
[327161642,1715866249885,-500.0,0.00016438,2]
[327161643,1715866249895,-823.74,0.00016438,2]
[327161644,1715866249904,-1463.012935,0.00016438,2]
[327161645,1715866249914,-1463.012935,0.00016438,2]
[327161646,1715866249924,-2872.55,0.00016438,2]
[327161647,1715866249934,-500.0,0.00016438,2]
[327161648,1715866249943,-1463.012935,0.00016438,2]
[327161649,1715866249953,-1463.012935,0.00016438,2]
[327161650,1715866249963,-3596.99,0.00016438,2]
[327161651,1715866249972,-500.0,0.00016438,2]
[327161652,1715866249982,-500.0,0.00016438,2]
[327161653,1715866249991,-561.14,0.00016438,2]
[327161654,1715866250001,-810.86,0.00016438,2]
[327161655,1715866250011,-810.86,0.00016438,2]
[327161656,1715866250021,-810.86,0.00016438,2]
[327161657,1715866250031,-810.86,0.00016438,2]
[327161658,1715866250041,-810.86,0.00016438,2]
[327161659,1715866250051,-810.86,0.00016438,2]
[327161660,1715866250062,-500.0,0.00016438,2]
[327161661,1715866250072,-810.86,0.00016438,2]
[327161662,1715866250082,-810.86,0.00016438,2]
[327161663,1715866250092,-810.86,0.00016438,2]
[327161664,1715866250102,-810.86,0.00016438,2]
[327161665,1715866250112,-810.86,0.00016438,2]
[327161666,1715866250122,-810.86,0.00016438,2]
[327161667,1715866250132,-6375.96,0.00016438,2]
[327161668,1715866250141,-810.86,0.00016438,2]
[327161669,1715866250151,-596.65,0.00016438,2]
[327161670,1715866250162,-500.0,0.00016438,2]
[327161671,1715866250171,-500.0,0.00016438,2]
[327161672,1715866250184,-500.0,0.00016438,2]
[327161673,1715866250195,-477.6510347,0.00016438,2]
[327161674,1715866250205,-1582.93,0.00016438,2]
[327161675,1715866250215,-1631.57,0.00016438,2]
[327161676,1715866250226,-1282.95,0.00016438,2]
[327161677,1715866250236,-500.0,0.00016438,2]
[327161678,1715866250246,-2897.01,0.00016438,2]
[327161679,1715866250257,-500.0,0.00016438,2]
[327161680,1715866250271,-500.0,0.00016438,2]
[327161681,1715866250282,-1417.38,0.00016438,2]
[327161682,1715866250292,-254.995134,0.00016438,2]
[327161683,1715866250303,-254.995134,0.00016438,2]
[327161684,1715866250313,-597.73211275,0.00016438,2]
[327161685,1715866250322,-5448.2,0.00016438,2]
[327161686,1715866250332,-254.995134,0.00016438,2]
[327161687,1715866250342,-500.0,0.00016438,2]
[327161688,1715866250351,-254.995134,0.00016438,2]
[327161689,1715866250361,-1000.0,0.00016438,2]
[327161690,1715866250370,-688.33,0.00016438,2]
[327161691,1715866250380,-803.92,0.00016438,2]
[327161692,1715866250390,-151.0,0.00016438,2]
[327161693,1715866250400,-151.0,0.00016438,2]
[327161694,1715866250409,-151.0,0.00016438,2]
[327161695,1715866250418,-153.0,0.000167,2]
[327161696,1715866250429,-153.0,0.000167,2]
[327161697,1715866250440,-316.0382818,0.000167,2]
[327161698,1715866250449,-159.2224157,0.000167,2]
[327161699,1715866250459,-153.0,0.000167,2]
[327161700,1715866250470,-157.0926765,0.000167,2]
[327161701,1715866250479,-153.0,0.000167,2]
[327161702,1715866250489,-295.7707493,0.000167,2]
[327161703,1715866250500,-153.0,0.000167,2]
[327161704,1715866250509,-540.8911242,0.000167,2]
[327161705,1715866250522,-500.0,0.00016709,2]
[327161706,1715866250532,-810.86,0.00016709,2]
[327161707,1715866250542,-744.57696609,0.0001671,2]
[327161708,1715866250551,-10503.99952427,0.0001671,2]
[327161709,1715866250560,-200.054453,0.0001671,2]
[327161710,1715866250571,-200.054453,0.0001671,2]
[327161711,1715866250580,-500.0,0.0001671,2]
[327161712,1715866250590,-500.0,0.0001671,2]
[327161713,1715866250600,-500.0,0.0001671,2]
[327161714,1715866250610,-500.0,0.0001671,2]
[327161715,1715866250621,-151.0,0.0001671,2]
[327161716,1715866250632,-151.0,0.0001671,2]
[327161717,1715866250642,-549.02,0.0001671,2]
[327161718,1715866250653,-421.678501,0.0001671,2]
[327161719,1715866250662,-2162.103569,0.0001671,2]
[327161720,1715866250672,-421.678501,0.0001671,2]
[327161721,1715866250683,-2162.103569,0.0001671,2]
[327161722,1715866250693,-151.0,0.0001671,2]
[327161723,1715866250703,-151.0,0.0001671,2]
[327161724,1715866250713,-392.688897,0.0001671,2]
[327161725,1715866250725,-988.700408,0.0001671,2]
[327161726,1715866250734,-988.700408,0.0001671,2]
[327161727,1715866250744,-500.0,0.0001671,2]
[327161728,1715866250754,-500.0,0.0001671,2]
[327161729,1715866250764,-500.0,0.0001671,2]
[327161730,1715866250776,-810.86,0.0001671,2]
[327161731,1715866250786,-810.86,0.0001671,2]
[327161732,1715866250796,-810.86,0.0001671,2]
[327161733,1715866250806,-3024.08689552,0.00016711,2]
[327161734,1715866250815,-91475.4616941,0.00016711,2]
[327161735,1715866250825,-151.0,0.00016711,2]
[327161736,1715866250835,-151.0,0.00016711,2]
[327161737,1715866250848,-200.054453,0.00016711,2]
[327161738,1715866250857,-200.054453,0.00016711,2]
[327161739,1715866250867,-176.090458,0.00016711,2]
[327161740,1715866250877,-500.0,0.00016711,2]
[327161741,1715866250887,-382.75469246,0.00016711,2]
[327161742,1715866250897,-151.0,0.00016711,2]
[327161743,1715866250906,-151.0,0.00016711,2]
[327161744,1715866250915,-549.02,0.00016711,2]
[327161745,1715866250925,-549.02,0.00016711,2]
[327161746,1715866250934,-549.02,0.00016711,2]
[327161747,1715866250944,-549.02,0.00016711,2]
[327161748,1715866250956,-549.02,0.00016711,2]
[327161749,1715866250965,-549.02,0.00016711,2]
[327161750,1715866250974,-549.02,0.00016711,2]
[327161751,1715866250985,-549.02,0.00016711,2]
[327161752,1715866250994,-549.02,0.00016711,2]
[327161753,1715866251007,-549.04,0.00016711,2]
[327161754,1715866251019,-421.678501,0.00016711,2]
[327161755,1715866251028,-2162.103569,0.00016711,2]
[327161756,1715866251037,-421.678501,0.00016711,2]
[327161757,1715866251046,-2162.103569,0.00016711,2]
[327161758,1715866251055,-151.0,0.00016711,2]
[327161759,1715866251065,-151.0,0.00016711,2]
[327161760,1715866251075,-151.0,0.00016711,2]
[327161761,1715866251085,-151.0,0.00016711,2]
[327161762,1715866251094,-151.0,0.00016711,2]
[327161763,1715866251104,-151.0,0.00016711,2]
[327161764,1715866251114,-151.0,0.00016711,2]
[327161765,1715866251124,-392.688897,0.00016711,2]
[327161766,1715866251133,-367.347824,0.00016711,2]
[327161767,1715866251142,-988.700408,0.00016711,2]
[327161768,1715866251152,-367.347824,0.00016711,2]
[327161769,1715866251161,-988.700408,0.00016711,2]
[327161770,1715866251171,-151.0,0.00016711,2]
[327161771,1715866251186,-400.916184,0.00016711,2]
[327161772,1715866251195,-400.916184,0.00016711,2]
[327161773,1715866251205,-151.0,0.00016711,2]
[327161774,1715866251215,-944.868241,0.00016711,2]
[327161775,1715866251225,-944.868241,0.00016711,2]
[327161776,1715866251235,-161.790551,0.00016711,2]
[327161777,1715866251244,-161.790551,0.00016711,2]
[327161778,1715866251256,-210.0,0.00016711,2]
[327161779,1715866251268,-210.0,0.00016711,2]
[327161780,1715866251277,-629.13883285,0.00016711,2]
[327161781,1715866251287,-151.0,0.00016711,2]
[327161782,1715866251296,-219.971407,0.00016711,2]
[327161783,1715866251305,-219.971407,0.00016711,2]
[327161784,1715866251314,-186.003464,0.00016711,2]
[327161785,1715866251323,-1463.012935,0.00016711,2]
[327161786,1715866251333,-1463.012935,0.00016711,2]
[327161787,1715866251354,-810.86,0.00016711,2]
[327161788,1715866251365,-810.86,0.00016711,2]
[327161789,1715866251376,-810.86,0.00016711,2]
[327161790,1715866251387,-810.86,0.00016711,2]
[327161791,1715866251396,-810.86,0.00016711,2]